bitfinex/quotes_SOLUSD_20250321
["timestamp","ask_amount","ask_price","bid_price","bid_amount"]
[1742596930329,21.87969469,127.81,127.8,0.03]
[1742596931134,14.05559469,127.81,127.8,0.03]
[1742596931337,13.77127155,127.82,127.8,0.03]
[1742596931713,0.28432314,127.82,127.8,0.03]
[1742596931917,13.77127155,127.81,127.8,0.03]
[1742596933032,21.59537155,127.81,127.8,0.03]
[1742596933214,13.77127155,127.81,127.8,0.03]
[1742596934219,21.59537155,127.81,127.8,0.03]
[1742596935241,13.77127155,127.81,127.8,0.03]
[1742596937030,21.59537155,127.81,127.8,0.03]
[1742596937525,21.59497155,127.82,127.8,0.03]
[1742596940449,7.823,127.83,127.8,0.03]
[1742596940618,0.063,127.84,127.8,13.80127155]
[1742596941237,0.063,127.84,127.82,13.77127155]
[1742596942416,0.063,127.84,127.82,21.59417155]
[1742596943715,0.063,127.84,127.81,23.20217155]
[1742596943914,0.063,127.84,127.81,7.8237]
[1742596944549,0.063,127.84,127.81,21.59497155]
[1742596947632,0.063,127.84,127.82,13.77127155]
[1742596948643,0.063,127.84,127.82,3.77127155]
[1742596949649,0.063,127.84,127.82,11.59437155]
[1742596950351,0.063,127.84,127.82,7.8231]
[1742596956152,0.063,127.84,127.82,21.59437155]
[1742596956533,0.063,127.84,127.82,11.59437155]
[1742596956735,0.063,127.84,127.81,13.80127155]
[1742596957658,0.063,127.84,127.82,7.8235]
[1742596959556,0.063,127.84,127.82,13.77127155]
[1742596962963,0.063,127.84,127.81,21.62497155]
[1742596963454,0.063,127.84,127.81,0.03]
[1742596964766,7.8852,127.84,127.81,0.03]
[1742596965558,21.65647155,127.84,127.81,0.03]
[1742596966267,7.8852,127.84,127.81,0.03]
[1742596966734,10.0,127.82,127.81,0.03]
[1742596969445,10.0,127.82,127.81,13.80127155]
[1742596971565,10.0,127.82,127.81,21.62537155]
[1742596972661,0.063,127.84,127.81,41.18557155]
[1742596972866,0.063,127.84,127.83,13.77127155]
[1742596973073,0.063,127.84,127.83,20.51127155]
[1742596974352,0.063,127.84,127.83,28.33407155]
[1742596982877,0.063,127.84,127.83,20.51127155]
[1742596983860,0.063,127.88,127.83,73.17324355]
[1742596984051,0.063,127.88,127.87,13.77127155]
[1742596984377,0.063,127.88,127.87,20.51127155]
[1742596985967,0.063,127.88,127.87,28.33167155]
[1742596990870,20.00827155,127.94,127.87,28.33167155]
[1742596991075,20.00827155,127.94,127.89,13.77127155]
[1742596992278,27.82477155,127.94,127.89,21.58997155]
[1742596993187,14.0535,127.94,127.9,13.77127155]
[1742596993479,14.0535,127.94,127.91,6.74]
[1742596994925,14.0535,127.94,127.9,13.77127155]
[1742596995983,27.82477155,127.94,127.91,6.74]
[1742597003489,27.88777155,127.94,127.91,6.74]
[1742597006199,14.1165,127.94,127.91,6.74]
[1742597006701,27.88777155,127.94,127.91,6.74]
[1742597010282,27.88777155,127.94,127.88,0.03]
[1742597010283,13.77127155,127.92,127.88,0.03]
[1742597010500,7.8186,127.9,127.88,0.03]
[1742597011903,13.77127155,127.89,127.88,0.03]
[1742597012204,21.58987155,127.9,127.88,0.03]
[1742597014586,7.8186,127.9,127.88,0.03]
[1742597015305,21.58987155,127.9,127.88,0.03]
[1742597019490,7.8186,127.9,127.88,0.03]
[1742597021488,21.58987155,127.9,127.88,0.03]
[1742597022411,7.8186,127.9,127.88,0.03]
[1742597029628,7.8435,127.94,127.89,13.77127155]
[1742597029629,0.063,127.94,127.89,13.77127155]
[1742597029796,0.063,127.94,127.91,13.77127155]
[1742597030198,0.063,127.94,127.9,20.51127155]
[1742597030903,0.063,127.94,127.9,28.32967155]
[1742597032405,0.063,127.94,127.91,13.77127155]
[1742597032907,0.063,127.94,127.92,13.77127155]
[1742597033520,0.063,127.94,127.92,21.58847155]
[1742597033727,0.063,127.94,127.92,13.77127155]
[1742597033923,0.063,127.94,127.92,21.58847155]
[1742597036820,0.063,127.94,127.92,13.77127155]
[1742597037129,0.063,127.94,127.91,13.77127155]
[1742597037933,0.063,127.94,127.91,3.77127155]
[1742597038233,7.8791,127.94,127.91,3.77127155]
[1742597038437,21.65037155,127.94,127.9,6.74]
[1742597040439,7.8791,127.94,127.9,20.51127155]
[1742597040816,21.65037155,127.94,127.9,20.51127155]
[1742597041727,7.8791,127.94,127.9,20.51127155]
[1742597041927,7.8791,127.94,127.9,28.32977155]
[1742597042126,7.8791,127.94,127.9,20.51127155]
[1742597043142,7.8791,127.94,127.9,28.32977155]
[1742597043441,0.063,127.94,127.91,13.77127155]
[1742597044642,0.063,127.94,127.91,21.58897155]
[1742597047641,0.063,127.94,127.9,14.5383]
[1742597047848,0.063,127.94,127.9,28.30957155]
[1742597051050,0.063,127.94,127.92,13.77127155]
[1742597053148,0.063,127.94,127.91,7.8176]
[1742597053448,0.063,127.94,127.92,13.77127155]
[1742597056156,0.063,127.94,127.91,13.77127155]
[1742597058050,0.063,127.94,127.92,13.77127155]
[1742597058239,0.063,127.94,127.93,13.77127155]
[1742597060439,0.063,127.94,127.93,21.58797155]
[1742597061736,0.063,127.94,127.92,13.77127155]
[1742597066058,0.063,127.94,127.93,7.8167]
[1742597069658,0.063,127.94,127.91,7.8479]
[1742597069983,0.063,127.94,127.91,21.61917155]
[1742597075665,0.063,127.94,127.93,21.58797155]
[1742597078965,0.063,127.94,127.93,21.87229469]
[1742597080262,0.063,127.94,127.93,40.52194355]
[1742597084163,0.063,127.94,127.93,21.87229469]
[1742597084466,0.063,127.94,127.92,228.18827155]
[1742597086367,0.063,127.94,127.93,6.72]
[1742597088971,0.063,127.94,127.93,14.5367]
[1742597089978,0.063,127.94,127.92,206.6]
[1742597090159,0.063,127.94,127.91,6.75]
[1742597090968,0.063,127.94,127.91,20.52127155]
[1742597093268,0.063,127.94,127.91,13.80127155]
[1742597093576,0.063,127.94,127.91,20.52127155]
[1742597093962,0.063,127.94,127.91,6.75]
[1742597094468,13.83427155,127.94,127.91,0.03]
[1742597095569,21.65047155,127.94,127.91,0.03]
[1742597095764,21.65047155,127.94,127.91,6.75]
[1742597104176,13.83427155,127.94,127.91,6.75]
[1742597104374,0.063,127.94,127.91,6.75]
[1742597104574,0.063,127.94,127.91,14.5678]
[1742597104896,21.65037155,127.94,127.91,6.75]
[1742597105584,13.77127155,127.93,127.91,6.75]
[1742597106389,0.063,127.94,127.91,0.03]
[1742597106390,15.33807155,127.92,127.91,0.03]
[1742597106686,21.66683312,127.92,127.91,0.03]
[1742597107505,0.063,127.94,127.91,7.8479]
[1742597107990,0.063,127.94,127.91,21.61917155]
[1742597108598,0.063,127.94,127.91,7.8479]
[1742597109094,0.063,127.94,127.91,0.03]
[1742597109388,13.83427155,127.94,127.91,0.03]
[1742597110379,0.063,127.94,127.91,0.03]
[1742597110764,13.77127155,127.92,127.91,0.03]
[1742597110966,0.063,127.94,127.91,0.03]
[1742597110967,13.77127155,127.93,127.91,0.03]
[1742597112492,21.58807155,127.93,127.91,0.03]
[1742597118092,13.77127155,127.93,127.91,0.03]
[1742597118275,21.79283312,127.94,127.91,0.03]
[1742597118475,13.97643312,127.94,127.91,0.03]
[1742597118996,13.77127155,127.93,127.91,0.03]
[1742597119802,13.83427155,127.94,127.91,0.03]
[1742597121296,21.65047155,127.94,127.91,0.03]
[1742597121611,13.77127155,127.92,127.91,0.03]
[1742597121812,21.58857155,127.92,127.91,0.03]
[1742597126204,21.58827155,127.93,127.91,0.03]
[1742597126993,13.77127155,127.92,127.91,0.03]
[1742597127278,13.91343312,127.92,127.91,0.03]
[1742597128504,21.73073312,127.92,127.91,0.03]
[1742597128889,7.95946157,127.92,127.91,0.03]
[1742597130302,21.87289469,127.92,127.91,0.03]
[1742597135613,21.93589469,127.92,127.91,0.03]
[1742597137609,7.8803,127.92,127.91,0.03]
[1742597137992,21.65157155,127.92,127.91,0.03]
[1742597138888,7.8803,127.92,127.91,0.03]
[1742597140315,21.65157155,127.92,127.91,0.03]
[1742597142403,21.79373312,127.92,127.91,0.03]
[1742597142811,21.93589469,127.92,127.91,0.03]
[1742597147126,40.58554355,127.92,127.91,0.03]
[1742597147425,95.67062975,127.92,127.91,0.03]
[1742597152222,40.58554355,127.92,127.91,0.03]
[1742597180367,40.58554355,127.92,127.91,0.03]
[1742597183357,95.95495289,127.92,127.91,0.03]
[1742597183546,0.56864628,127.91,127.9,0.03]
[1742597183742,15.89335579,127.91,127.9,0.03]
[1742597184148,15.89335579,127.91,127.9,0.0001]
[1742597184149,34.54300465,127.91,127.9,0.0001]
[1742597184342,36.10150465,127.91,127.9,0.0001]
[1742597185858,43.91940465,127.91,127.9,0.0001]
[1742597189664,38.79181043,127.89,127.88,0.03]
[1742597189858,52.56308198,127.89,127.88,0.03]
[1742597190267,60.38228198,127.89,127.88,0.03]
[1742597192056,41.73263312,127.89,127.88,0.03]
[1742597192343,41.87479469,127.89,127.88,0.03]
[1742597193367,34.05559469,127.89,127.88,0.03]
[1742597193546,21.58957155,127.91,127.88,0.03]
[1742597193749,0.14216157,127.9,127.88,0.03]
[1742597194548,0.20516157,127.9,127.88,0.03]
[1742597203456,8.02386157,127.9,127.88,0.03]
[1742597204068,0.20516157,127.9,127.88,0.03]
[1742597214280,0.063,127.9,127.88,0.03]
[1742597222093,0.063,127.9,127.88,13.80127155]
[1742597223282,0.063,127.9,127.88,0.03]
[1742597228695,13.97643312,127.9,127.88,0.03]
[1742597230000,40.52444355,127.89,127.88,0.03]
[1742597230293,42.36220465,127.89,127.88,0.03]
[1742597235294,18.933972,127.88,127.83,0.03]
[1742597235479,13.77127155,127.86,127.83,0.03]
[1742597238576,7.8216,127.85,127.83,0.03]
[1742597247089,14.05559469,127.84,127.83,0.03]
[1742597248508,21.87779469,127.84,127.83,0.03]
[1742597251788,40.52744355,127.84,127.83,0.03]
[1742597251990,40.38528198,127.84,127.83,0.03]
[1742597252301,40.52744355,127.84,127.83,0.03]
[1742597256906,8.10652314,127.84,127.83,0.03]
[1742597259997,21.87779469,127.84,127.83,0.03]
[1742597263813,43.94450465,127.84,127.83,0.03]
[1742597265323,43.94450465,127.84,127.81,0.03]
[1742597265324,38.64964886,127.8,127.78,0.03]
[1742597265625,20.0,127.8,127.78,0.03]
[1742597266222,27.8248,127.8,127.78,0.03]
[1742597266517,41.59607155,127.8,127.78,0.03]
[1742597266916,27.8248,127.8,127.74,14.8137]
[1742597267106,41.59607155,127.8,127.75,13.80127155]
[1742597268001,41.59607155,127.8,127.75,13.30127155]
[1742597268205,0.14216157,127.79,127.75,13.30127155]
[1742597268519,14.05559469,127.77,127.73,7.72]
[1742597268706,14.05559469,127.77,127.73,1.0]
[1742597268905,13.77127155,127.76,127.73,1.0]
[1742597269316,13.77127155,127.75,127.73,1.0]
[1742597270013,7.8284,127.74,127.73,1.0]
[1742597270515,13.77127155,127.75,127.73,1.0]
[1742597271106,13.77127155,127.74,127.73,1.0]
[1742597271309,21.59927155,127.75,127.73,1.0]
[1742597272926,7.96956157,127.76,127.73,1.0]
[1742597273128,0.14216157,127.76,127.73,1.0]
[1742597273332,13.91343312,127.76,127.73,1.0]
[1742597273914,13.77127155,127.75,127.73,1.0]
[1742597274125,14.05559469,127.76,127.73,1.0]
[1742597274934,21.88279469,127.76,127.73,1.0]
[1742597275638,13.77127155,127.75,127.73,1.0]
[1742597275815,13.77127155,127.75,127.73,1.03]
[1742597276734,21.88279469,127.76,127.73,1.03]
[1742597276912,14.05559469,127.76,127.73,1.03]
[1742597277530,21.88299469,127.76,127.73,1.03]
[1742597278020,14.05559469,127.76,127.73,1.03]
[1742597278535,0.14216157,127.76,127.73,1.03]
[1742597278711,0.14216157,127.76,127.73,14.80127155]
[1742597279427,13.77127155,127.79,127.74,13.77127155]
[1742597279627,0.14216157,127.78,127.75,13.77127155]
[1742597280210,0.14216157,127.79,127.76,13.77127155]
[1742597280926,0.14216157,127.79,127.75,13.77127155]
[1742597281238,0.14216157,127.79,127.75,21.59867155]
[1742597283031,7.96756157,127.79,127.75,21.59867155]
[1742597283233,13.77127155,127.77,127.74,6.72]
[1742597283420,13.77127155,127.76,127.73,1.03]
[1742597283621,0.14216157,127.75,127.73,1.03]
[1742597285118,13.91343312,127.74,127.73,1.03]
[1742597285444,0.14216157,127.75,127.73,1.03]
[1742597285819,7.96996157,127.75,127.73,1.03]
[1742597286014,21.74123312,127.75,127.73,1.03]
[1742597287037,7.96996157,127.75,127.73,1.03]
[1742597287619,0.14216157,127.75,127.73,1.03]
[1742597287834,0.28432314,127.75,127.73,1.03]
[1742597289150,8.11212314,127.75,127.73,1.03]
[1742597291232,0.28432314,127.75,127.73,1.03]
[1742597291629,21.88349469,127.75,127.73,1.03]
[1742597292635,0.28432314,127.75,127.73,1.03]
[1742597295045,8.11212314,127.75,127.73,1.03]
[1742597295551,0.14216157,127.75,127.73,1.03]
[1742597295718,21.59807155,127.77,127.73,8.8589]
[1742597295921,0.14216157,127.76,127.73,1.03]
[1742597296346,41.74183312,127.74,127.73,1.03]
[1742597300235,60.53364355,127.74,127.73,1.03]
[1742597301940,7.8281,127.75,127.73,1.03]
[1742597302348,0.14216157,127.75,127.73,1.03]
[1742597303647,7.97016157,127.75,127.73,1.03]
[1742597306130,21.74143312,127.75,127.73,1.03]
[1742597310631,21.80443312,127.75,127.73,1.03]
[1742597311259,8.03316157,127.75,127.73,1.03]
[1742597325961,0.063,127.75,127.73,1.03]
[1742597326168,0.20516157,127.75,127.73,1.03]
[1742597327166,0.063,127.75,127.73,8.8589]
[1742597327843,0.063,127.75,127.74,13.77127155]
[1742597328267,0.063,127.75,127.74,15.42327155]
[1742597329170,0.063,127.75,127.74,23.25167155]
[1742597329678,0.063,127.75,127.74,23.53599469]
[1742597330157,0.063,127.75,127.74,23.25167155]
[1742597331254,0.063,127.75,127.74,15.42327155]
[1742597332480,0.063,127.75,127.74,23.25167155]
[1742597333278,0.063,127.75,127.74,15.42327155]
[1742597338156,0.063,127.75,127.74,23.25167155]
[1742597338484,0.063,127.75,127.74,9.4804]
[1742597338862,0.063,127.75,127.73,28.76987155]
[1742597339278,0.0001,127.75,127.74,70.52601932]
[1742597339476,0.063,127.8,127.76,0.14216157]
[1742597339678,0.063,127.8,127.79,15.29877155]
[1742597339985,0.063,127.8,127.79,222.19877155]
[1742597340217,0.063,127.8,127.79,230.30839469]
[1742597341485,0.0001,127.8,127.79,230.30839469]
[1742597341984,0.0001,127.81,127.79,304.18529132]
[1742597342164,0.0001,127.81,127.8,96.89479872]
[1742597342365,11.93092653,127.86,127.8,116.74092186]
[1742597342563,11.93092653,127.86,127.85,13.77127155]
[1742597342784,11.93092653,127.86,127.85,20.49127155]
[1742597343091,0.063,127.88,127.85,20.49127155]
[1742597344298,0.063,127.88,127.85,6.72]
[1742597345784,0.063,127.88,127.86,13.77127155]
[1742597348500,0.063,127.88,127.85,14.5416]
[1742597348714,0.063,127.88,127.86,13.77127155]
[1742597349300,13.83427155,127.88,127.85,6.72]
[1742597349606,13.83427155,127.88,127.83,13.77127155]
[1742597349778,13.77127155,127.87,127.84,6.72]
[1742597350400,21.59167155,127.87,127.84,6.72]
[1742597351107,7.8204,127.87,127.84,6.72]
[1742597354093,7.8204,127.87,127.83,13.77127155]
[1742597354279,7.8204,127.87,127.83,6.72]
[1742597354484,0.063,127.88,127.85,13.77127155]
[1742597354687,0.20516157,127.88,127.84,13.77127155]
[1742597355379,0.063,127.88,127.84,13.77127155]
[1742597355590,0.063,127.88,127.85,13.77127155]
[1742597356406,33.27397268,127.88,127.85,13.77127155]
[1742597356801,0.063,127.88,127.85,13.77127155]
[1742597358703,0.063,127.88,127.85,21.59287155]
[1742597359312,0.063,127.88,127.86,13.77127155]
[1742597360222,0.063,127.88,127.86,21.59227155]
[1742597360500,0.063,127.88,127.87,6.7]
[1742597360705,0.063,127.88,127.87,20.47127155]
[1742597362196,0.063,127.88,127.87,28.29167155]
[1742597363015,0.063,127.89,127.87,48.78912839]
[1742597363319,0.063,127.89,127.88,14.05559469]
[1742597364389,0.063,127.89,127.88,21.87539469]
[1742597365015,0.063,127.89,127.88,228.55539469]
[1742597365916,0.063,127.89,127.88,206.68]
[1742597366215,3.89727155,127.91,127.88,213.38]
[1742597368032,11.71527155,127.91,127.88,213.38]
[1742597369926,11.71527155,127.91,127.88,6.7]
[1742597370134,23.22617155,127.92,127.88,6.7]
[1742597372224,13.77127155,127.91,127.88,6.7]
[1742597375133,21.58947155,127.91,127.88,6.7]
[1742597376129,23.22607155,127.92,127.88,6.7]
[1742597378423,23.22607155,127.92,127.88,14.5196]
[1742597380024,13.77127155,127.91,127.88,6.7]
[1742597380338,13.77127155,127.9,127.88,6.7]
[1742597380538,9.4548,127.92,127.85,206.68]
[1742597380539,0.14216157,127.88,127.85,206.68]
[1742597380741,13.77127155,127.87,127.85,213.38]
[1742597381821,21.73343312,127.88,127.85,213.38]
[1742597382138,21.73343312,127.88,127.85,206.68]
[1742597385657,13.77127155,127.9,127.85,228.27267155]
[1742597385952,21.59007155,127.9,127.85,228.27267155]
[1742597387627,7.8188,127.9,127.86,21.59197155]
[1742597387834,21.73163312,127.91,127.86,21.59197155]
[1742597389448,21.59007155,127.9,127.86,7.8207]
[1742597391455,21.59007155,127.9,127.85,214.5013]
[1742597392351,0.063,127.92,127.86,13.77127155]
[1742597392646,0.063,127.92,127.89,13.77127155]
[1742597392955,0.063,127.92,127.89,20.47127155]
[1742597393739,0.063,127.91,127.89,20.47127155]
[1742597394558,0.063,127.91,127.9,7.8186]
[1742597396226,0.063,127.91,127.9,21.58987155]
[1742597396963,0.063,127.92,127.9,23.43730246]
[1742597397251,0.063,127.92,127.91,14.05559469]
[1742597397436,0.063,127.92,127.91,20.09769469]
[1742597398654,0.063,127.92,127.91,27.91559469]
[1742597399228,0.063,127.92,127.91,48.09784355]
[1742597399551,0.063,127.92,127.91,29.44819469]
[1742597399733,0.063,127.92,127.91,29.30603312]
[1742597399928,0.063,127.92,127.91,23.12177155]
[1742597400128,0.063,127.92,127.91,15.30387155]
[1742597400754,0.063,127.92,127.9,21.58947155]
[1742597400941,0.063,127.92,127.91,13.77127155]
[1742597401146,0.063,127.92,127.9,13.77127155]
[1742597402253,0.063,127.92,127.91,6.7]
[1742597405137,0.063,127.92,127.91,6.73]
[1742597407773,0.063,127.92,127.91,14.5479]
[1742597409071,0.063,127.92,127.91,28.31917155]
[1742597418850,0.063,127.92,127.91,47.25314355]
[1742597419040,0.063,127.92,127.91,48.81597346]
[1742597423364,0.063,127.92,127.91,48.95813503]
[1742597425356,0.063,127.92,127.91,52.96473401]
[1742597425556,0.063,127.92,127.91,48.95813503]
[1742597426265,0.063,127.92,127.91,48.81597346]
[1742597426445,0.063,127.92,127.91,28.31917155]
[1742597428768,0.063,127.92,127.91,20.50127155]
[1742597429077,0.063,127.92,127.91,6.73]
[1742597429470,0.063,127.92,127.91,0.03]
[1742597434556,13.83427155,127.92,127.91,0.03]
[1742597435576,21.65157155,127.92,127.91,0.03]
[1742597435758,7.8803,127.92,127.91,0.03]
[1742597436285,21.65157155,127.92,127.91,0.03]
[1742597436455,29.99419469,127.92,127.91,0.03]
[1742597443979,16.22292314,127.92,127.91,0.03]
[1742597445883,0.063,127.92,127.91,0.03]
[1742597448359,0.063,127.92,127.91,13.80127155]
[1742597449486,0.063,127.92,127.91,21.61917155]
[1742597453496,0.063,127.92,127.91,21.90349469]
[1742597457302,0.063,127.92,127.91,40.55314355]
[1742597457488,0.063,127.92,127.91,97.20108889]
[1742597458188,0.063,127.92,127.91,42.11600269]
[1742597458784,0.063,127.92,127.91,40.55314355]
[1742597459191,0.063,127.92,127.91,21.90349469]
[1742597461806,0.063,127.92,127.91,21.61917155]
[1742597464419,0.063,127.92,127.91,302.23822975]
[1742597466198,0.063,127.93,127.92,18.64964886]
[1742597466394,0.063,127.93,127.92,89.06864876]
[1742597466598,0.063,127.97,127.95,20.0]
[1742597466799,0.063,127.97,127.96,20.47127155]
[1742597467712,0.063,127.97,127.96,20.75559469]
[1742597468118,0.063,127.97,127.96,28.57049469]
[1742597468704,0.063,127.97,127.96,104.00965984]
[1742597469287,0.063,128.01,127.96,28.57049469]
[1742597469500,0.063,128.01,127.99,13.77127155]
[1742597469710,0.063,128.01,128.0,6.7]
[1742597472394,0.063,128.01,128.0,20.47127155]
[1742597472595,0.063,128.01,128.0,6.7]
[1742597474315,21.78823312,128.01,127.96,13.77127155]
[1742597474511,13.77127155,128.0,127.98,6.7]
[1742597474710,20.35887155,128.0,127.98,6.7]
[1742597474902,20.35887155,128.0,127.95,13.77127155]
[1742597475218,20.35887155,128.0,127.96,6.7]
[1742597476420,7.8131,127.99,127.96,6.7]
[1742597477703,7.8131,127.99,127.96,20.47127155]
[1742597478199,6.6506,128.0,127.97,13.77127155]
[1742597478403,0.063,128.0,127.97,13.77127155]
[1742597478718,0.063,128.0,127.98,13.77127155]
[1742597479915,0.063,128.0,127.99,13.77127155]
[1742597481423,0.063,128.0,127.99,21.58437155]
[1742597483627,0.063,128.0,127.99,21.86869469]
[1742597486826,0.063,128.01,128.0,18.933972]
[1742597487030,0.063,128.03,128.0,39.40524355]
[1742597487212,0.063,128.03,128.02,13.77127155]
[1742597487931,0.063,128.03,128.02,21.58247155]
[1742597488125,0.063,128.03,128.02,42.07806937]
[1742597488827,0.063,128.04,128.03,0.28432314]
[1742597489026,0.063,128.04,128.03,14.05559469]
[1742597489824,0.063,128.04,128.03,32.70524355]
[1742597490029,0.063,128.04,128.03,21.86619469]
[1742597491233,0.063,128.04,128.03,228.32619469]
[1742597493337,0.063,128.04,128.03,220.23127155]
[1742597495938,0.063,128.04,128.03,206.46]
[1742597496838,0.063,128.04,128.03,220.23127155]
[1742597497941,0.063,128.04,128.03,228.04187155]
[1742597501135,0.063,128.04,128.03,228.07187155]
[1742597505742,0.063,128.04,128.03,228.35619469]
[1742597505945,0.063,128.04,128.03,247.00584355]
[1742597508048,0.063,128.04,128.03,247.14800512]
[1742597508241,0.063,128.1,128.04,69.14068089]
[1742597508444,0.063,128.1,128.06,13.77127155]
[1742597508639,13.83427155,128.1,128.05,20.47127155]
[1742597509739,21.64067155,128.1,128.06,13.77127155]
[1742597510050,21.64067155,128.1,128.05,28.28017155]
[1742597510531,7.8694,128.1,128.06,13.77127155]
[1742597511658,0.063,128.1,128.06,21.57967155]
[1742597513243,0.063,128.1,128.07,13.77127155]
[1742597515158,0.063,128.1,128.08,21.57887155]
[1742597515452,0.063,128.1,128.09,6.7]
[1742597515647,0.063,128.1,128.09,20.47127155]
[1742597517651,0.063,128.1,128.09,28.27827155]
[1742597518757,0.063,128.1,128.09,20.47127155]
[1742597522445,0.063,128.1,128.09,6.7]
[1742597523265,0.063,128.1,128.09,20.47127155]
[1742597524270,0.063,128.1,128.09,28.27827155]
[1742597526664,0.063,128.1,128.09,28.56259469]
[1742597526867,0.063,128.1,128.09,102.29732975]
[1742597527548,0.063,128.1,128.09,47.21224355]
[1742597528158,0.063,128.12,128.11,0.28432314]
[1742597528362,0.063,128.12,128.11,14.05559469]
[1742597529546,0.063,128.12,128.11,13.77127155]
[1742597529743,0.063,128.12,128.11,21.57697155]
[1742597530383,0.063,128.12,128.11,13.77127155]
[1742597530881,0.063,128.12,128.11,21.57697155]
[1742597534280,0.063,128.12,128.11,13.77127155]
[1742597534585,0.063,128.12,128.1,6.68]
[1742597536976,0.063,128.12,128.08,14.05559469]
[1742597537180,0.063,128.12,128.11,6.68]
[1742597550285,0.063,128.12,128.11,14.4857]
[1742597551093,0.063,128.12,128.11,6.68]
[1742597554585,0.063,128.12,128.11,14.4857]
[1742597560106,0.063,128.12,128.11,28.25697155]
[1742597563583,0.063,128.12,128.11,28.54129469]
[1742597564083,0.063,128.12,128.11,48.89363522]
[1742597566203,0.063,128.13,128.12,0.42648471]
[1742597566402,0.063,128.13,128.12,14.19775626]
[1742597567099,0.063,128.13,128.12,14.05559469]
[1742597567803,0.063,128.13,128.11,28.25697155]
[1742597568385,0.063,128.13,128.12,14.05559469]
[1742597569503,0.063,128.13,128.12,21.86069469]
[1742597570702,0.063,128.13,128.11,28.25687155]
[1742597571002,0.063,128.13,128.1,7.8362]
[1742597571194,0.063,128.13,128.11,6.68]
[1742597572506,0.063,128.13,128.11,6.71]
[1742597572809,13.83427155,128.13,128.11,6.71]
[1742597573009,0.063,128.13,128.11,6.71]
[1742597578005,0.063,128.13,128.11,14.5157]
[1742597582189,0.063,128.13,128.11,6.71]
[1742597584299,0.063,128.13,128.11,14.5157]
[1742597585113,0.063,128.13,128.11,6.71]
[1742597586318,21.20137155,128.14,128.11,6.71]
[1742597589314,21.20137155,128.14,128.11,0.03]
[1742597589315,13.77127155,128.13,128.11,0.03]
[1742597589519,13.77127155,128.12,128.11,0.03]
[1742597589707,19.82527155,128.12,128.11,0.03]
[1742597590321,27.63037155,128.12,128.11,0.03]
[1742597595406,27.77253312,128.12,128.11,0.03]
[1742597597716,21.60607155,128.13,128.11,0.03]
[1742597600435,13.77127155,128.12,128.11,0.03]
[1742597600733,21.57637155,128.12,128.11,0.03]
[1742597608133,0.03,128.13,128.11,0.03]
[1742597610839,13.77127155,128.12,128.11,0.03]
[1742597611138,21.60587155,128.13,128.11,0.03]
[1742597612337,13.80127155,128.13,128.11,0.03]
[1742597614837,0.03,128.13,128.11,0.03]
[1742597645174,13.91343312,128.12,128.11,0.03]
[1742597645773,21.71853312,128.12,128.11,0.03]
[1742597646152,40.51034355,128.12,128.11,0.03]
[1742597652576,40.51034355,128.12,128.11,0.0001]
[1742597655266,99.04914355,128.12,128.07,6.68]
[1742597655466,13.77127155,128.1,128.07,6.68]
[1742597656183,7.807,128.09,128.07,6.68]
[1742597661668,21.57827155,128.09,128.07,6.68]
[1742597662892,21.57827155,128.09,128.06,6.71]
[1742597665195,13.91343312,128.08,128.06,6.71]